Cogmind - Beta 13 @@@ ROGUE MODE // 2024.07.16 @ 23:37:17 // Winter2022/Polymind Player: Temnova Result: Destroyed by G-47 Trooper with Particle Gun Performance ------------- Evolutions (2) 1000 Regions Visited (3) 600 Robots Destroyed (6) 30 Value Destroyed (135) 135 Prototype IDs (0) 0 Alien Tech Used (0) 0 Bonus (1439) 1439 TOTAL SCORE: 3084 Bonus ------- Polymind Skill 1239 Pacifist 200 Cogmind --------- Core Integrity 0/550 Matter 0/0 Energy 50/50 System Corruption 3% Temperature Cool (58) Movement Rolling (80) Location -8/Materials Parts ------- > --- POWER (1) -------- Light Ion Engine > --- PROPULSION (2) --- Wheel Wheel > --- UTILITY (3) ------ Structural Scanner Terrain Scanner Terrain Scan Processor > --- WEAPON (1) ------- (None) > --- INVENTORY (0) ---- (None) Peak State ------------ > --- POWER ------------ Improved Ion Engine > --- PROPULSION ------- Light Treads Light Treads > --- UTILITY ---------- Heat Sink Heat Sink Light Armor Plating > --- WEAPON ----------- Beam Rifle Heavy Assault Rifle > --- INVENTORY -------- (None) [Rating: 11] Favorites ----------- Power Light Ion Engine Engine Light Ion Engine Propulsion Light Treads Treads Light Treads Wheel Wheel Hover Unit Hover Unit Utility Heat Sink Device Heat Sink Storage Medium Matter Pod Processor Terrain Scan Processor Hackware Hacking Suite Protection Light Armor Plating Weapon Heavy Assault Rifle Energy Gun Beam Rifle Ballistic Gun Heavy Assault Rifle Special Weapon Welding Torch Special Melee Weapon Datajack Build | -11 -10 -9 -8 ------- Run | Yrd Mat Mat Mat Slots Evolved . | . . . . Power . | . . . . Propulsion . | . . . . Utility . | . . . . Weapon . | . . . . Parts Attached . | . . . . Power . | . . . . Engine . | . . . . Core . | . . . . Reactor . | . . . . Propulsion . | . . . . Treads . | . . . . Leg . | . . . . Wheel . | . . . . Hover . | . . . . Flight . | . . . . Utility . | . . . . Device . | . . . . Storage . | . . . . Processor . | . . . . Hackware . | . . . . Protection . | . . . . Artifact . | . . . . Weapon . | . . . . Energy Gun . | . . . . Energy Cannon . | . . . . Ballistic Gun . | . . . . Ballistic Cannon . | . . . . Launcher . | . . . . Special Weapon . | . . . . Impact Weapon . | . . . . Slashing Weapon . | . . . . Piercing Weapon . | . . . . Special Melee Weapon . | . . . . Unidentified Prototypes . | . . . . Parts Lost 12 | . 4 . 8 Power 2 | . 1 . 1 Propulsion 4 | . 2 . 2 Utility 2 | . . . 2 Weapon 4 | . 1 . 3 Highest Loss Streak 8 | . 4 . 8 To Critical Strikes . | . . . . Average Slot Usage (%) 82 | . 86 85 72 Engine 14 | . 18 13 10 Treads 10 | . . 13 17 Wheel 14 | . 28 11 2 Hover 3 | . 9 1 . Device 12 | . 6 15 14 Storage 6 | . 14 5 . Processor 1 | . 2 . 1 Hackware 2 | . 4 2 . Protection 5 | . . 6 8 Energy Gun 4 | . . 6 7 Ballistic Gun 4 | . . 6 7 Naked Turns 57 | . 5 22 30 Heaviest Build 18 | 9 9 18 18 Greatest Support 40 | 32 32 40 40 Greatest Overweight (x) . | . . . . Average Overweight (x) . | . . . . Largest Inventory Capacity 4 | 4 4 4 1 Average Capacity 1 | 3 1 1 . Most Carried 4 | 4 4 4 . Average Carried . | 2 1 . . Final Capacity 4 | 4 1 1 . Final Carried 4 | 4 . . . Class Distribution -------------------- 43% | Sentry 20% | Worker 12% | Recycler 11% | Operator 6% | Cogmind 3% | Builder Dominant Class ---------------- Worker | -10/Materials Sentry | -9/Materials Sentry | -8/Materials Resources | -11 -10 -9 -8 ----------- Run | Yrd Mat Mat Mat Matter Collected 61 | . . 48 13 Remotely . | . . . . Salvage Created 236 | . . 232 4 Parts 8 | . . 7 1 Haulers Intercepted 1 | . . 1 . Recyclers Shooed 1 | . . 1 . Parts Field Recycled . | . . . . Retrieved Matter . | . . . . Parts Self-Destructed . | . . . . Prevented . | . . . . Kills | -11 -10 -9 -8 ------- Run | Yrd Mat Mat Mat Combat Hostiles Destroyed 3 | . . 3 . Guns 3 | . . 3 . Classes Destroyed 4 | . . 3 1 Hauler 1 | . . 1 . Recycler 1 | . . 1 . Watcher 1 | . . . 1 Grunt 3 | . . 3 . Best Kill Streak 3 | . . 3 1 Combat Bots Only 3 | . . 3 . Max Kills in Single Turn 1 | . . 1 1 Gunslinging . | . . . . Exploded . | . . . . Melee . | . . . . Uniques/NPCs Destroyed . | . . . . Combat | -11 -10 -9 -8 -------- Run | Yrd Mat Mat Mat Hostile Shots Fired 154 | . 28 36 90 Missed 44 | . 12 10 22 Damage Taken 1635 | . 206 329 1100 Core 786 | . 74 153 559 Absorbed by Shields . | . . . . Core Remaining (%) 77 | 100 70 61 . Volleys Fired 14 | . . 12 2 Largest 2 | . . 2 1 Hottest 79 | . . 79 20 Shots Fired 26 | . . 24 2 Gun 24 | . . 24 . Cannon . | . . . . Launcher . | . . . . Special 2 | . . . 2 Kinetic 12 | . . 12 . Thermal 14 | . . 12 2 Explosive . | . . . . Electromagnetic . | . . . . Robot Hit Streak 5 | . . 5 . Robot Miss Streak 4 | . . 4 3 Penetration Max . | . . . . Secondary Targets 2 | . . 2 . Max Gunslinging Chain 1 | . . 1 . Shots Hit Robots 13 | . . 13 . Core Hits 15 | . . 8 7 Critical Kills . | . . . . Critical Parts Destroyed . | . . . . Critical Strikes . | . . . . Melee Attacks 2 | . . 2 . Impact . | . . . . Slashing . | . . . . Piercing . | . . . . Sneak Attacks 2 | . . 2 . Combat Hostiles . | . . . . Follow-up Attacks . | . . . . Damage Inflicted 384 | . 8 258 118 Guns 205 | . . 205 . Cannons . | . . . . Explosions . | . . . . Melee . | . . . . Ramming 179 | . 8 53 118 Kinetic 100 | . . 100 . Thermal 105 | . . 105 . Explosive . | . . . . Electromagnetic . | . . . . Impact . | . . . . Slashing . | . . . . Piercing . | . . . . Highest Corruption 3 | . . 2 3 Average Corruption 2 | . . 1 2 Corruption Purged . | . . . . Corruption Blocked . | . . . . Effects 4 | . . 3 1 Message Errors 3 | . . 2 1 Data Loss (major) 1 | . . 1 . Overload Shots . | . . . . Overflow Damage 3 | . . . 3 Projectiles . | . . . . Explosions . | . . . . Melee 3 | . . . 3 Knockbacks . | . . . . Impact . | . . . . Kinetic . | . . . . Secondary . | . . . . Self-Inflicted Damage 61 | . 3 17 41 Shots . | . . . . Rammed 67 | . 2 16 49 Targets Rammed 69 | . 2 17 50 Kicked . | . . . . Crushed 2 | . . 1 1 Highest Temperature 149 | . 32 52 149 Average Temperature 25 | . 14 18 36 Received Heat Transfer 834 | . 132 171 531 Siege Activations . | . . . . Robots Corrupted . | . . . . Combat Hostiles . | . . . . Parts Fried . | . . . . Impact Corruptions 1 | . . . 1 Robots Melted . | . . . . Combat Hostiles . | . . . . Parts Melted . | . . . . Heat Transferred 259 | . . 259 . Parts Sabotaged . | . . . . Parts Stolen . | . . . . Parts Stripped . | . . . . Power Chain Reactions . | . . . . Alert | -11 -10 -9 -8 ------- Run | Yrd Mat Mat Mat Peak Influence 227 | . 120 227 88 Initial 11 | . . . 11 Average 54 | . 15 101 23 Maximum Alert Level 1 | . . 1 . Low Security (%) 83 | 100 100 62 100 Level 1 16 | . . 37 . Level 2 . | . . . . Level 3 . | . . . . Level 4 . | . . . . Level 5 . | . . . . High Security . | . . . . Max Security . | . . . . Squads Dispatched 3 | . 2 1 . Investigation 2 | . 2 . . Extermination . | . . . . Reinforcement 1 | . . 1 . Assault . | . . . . Garrison . | . . . . Intercept . | . . . . Searches Triggered . | . . . . Construction Impeded . | . . . . Haulers Reinforced . | . . . . Active Scanning Responses . | . . . . Cargo Convoy Interrupts . | . . . . Stealth | -11 -10 -9 -8 --------- Run | Yrd Mat Mat Mat Distress Signals 2 | . . 1 1 Communications Jammed . | . . . . Distress Signals . | . . . . Times Spotted 34 | . 12 12 10 Peak Tracking Total 8 | . 8 6 5 Tactical Retreats 1 | . 1 . . Traps | -11 -10 -9 -8 ------- Run | Yrd Mat Mat Mat Traps Triggered . | . . . . Indirectly . | . . . . Trap Hack Attempts . | . . . . Triggered . | . . . . Disarmed . | . . . . Reprogrammed . | . . . . Reused . | . . . . Traps Extracted . | . . . . Installed . | . . . . Triggered . | . . . . Machines | -11 -10 -9 -8 ---------- Run | Yrd Mat Mat Mat Machines Disabled . | . . . . Max in Single Turn . | . . . . Machines Repaired . | . . . . Machines Dismantled . | . . . . Machines Sabotaged . | . . . . Overloaded Fab Kills . | . . . . Hacking | -11 -10 -9 -8 --------- Run | Yrd Mat Mat Mat Machines Accessed 4 | . 3 1 . Terminals 4 | . 3 1 . Fabricators . | . . . . Repair Stations . | . . . . Recycling Units . | . . . . Scanalyzers . | . . . . Garrison Access . | . . . . Total Hacks 9 | . 7 2 . Successful 6 | . 5 1 . Failed 3 | . 2 1 . Catastrophic . | . . . . Database Lockouts . | . . . . Manual . | . . . . Terminals 9 | . 7 2 . Fabricators . | . . . . Repair Stations . | . . . . Recycling Units . | . . . . Scanalyzers . | . . . . Garrison Access . | . . . . Terminal Hacks 6 | . 5 1 . Record 2 | . 1 1 . Alert Level 2 | . 2 . . Unreport Threat 2 | . 2 . . Fabricator Hacks . | . . . . Repair Station Hacks . | . . . . Recycling Unit Hacks . | . . . . Scanalyzer . | . . . . Garrison Access Hacks . | . . . . Unauthorized Hacks . | . . . . Terminals . | . . . . Fabricators . | . . . . Repair Stations . | . . . . Recycling Units . | . . . . Scanalyzers . | . . . . Garrison Access . | . . . . Data Cores Recovered . | . . . . Used . | . . . . Hacking Detections 2 | . 2 . . Full Trace Events 2 | . 2 . . Feedback Events . | . . . . Feedback Blocked . | . . . . Robot Schematics Acquired . | . . . . Robots Built . | . . . . Authchips . | . . . . Time . | . . . . Total Robot Build Rating . | . . . . Part Schematics Acquired . | . . . . Parts Built . | . . . . Authchips . | . . . . Time . | . . . . Total Part Build Rating . | . . . . Parts Repaired . | . . . . Time . | . . . . Parts Recycled . | . . . . Recycled Matter . | . . . . Retrieved Matter . | . . . . Retrieved Components . | . . . . Parts Scanalyzed . | . . . . Part Schematics Acquired . | . . . . Parts Damaged . | . . . . Bothacking | -11 -10 -9 -8 ------------ Run | Yrd Mat Mat Mat Used RIF Installer . | . . . . Robots Hacked 8 | . 2 4 2 Non-combat 6 | . 2 3 1 Combat 2 | . . 1 1 Robot Hacks Applied 10 | . 3 4 3 no_distress 1 | . . 1 . map_walls 1 | . . . 1 find_recycling 1 | . . 1 . find_terminals 2 | . 1 1 . map_route 1 | . 1 . . mark_security 1 | . 1 . . find_shortcuts 2 | . . 1 1 find_garrison 1 | . . . 1 Relay Couplers Released . | . . . . Fabnet Peak Effective % . | . . . . Robots Rewired . | . . . . Allies Hacked . | . . . . Hacks Repelled . | . . . . Allies | -11 -10 -9 -8 -------- Run | Yrd Mat Mat Mat Total Allies . | . . . . Largest Group . | . . . . Highest-Rated Group . | . . . . Highest-Rated Ally . | . . . . Total Orders . | . . . . Ally Attacks . | . . . . Total Damage . | . . . . Kills . | . . . . Allies Corrupted . | . . . . Allies Melted . | . . . . Intel | -11 -10 -9 -8 ------- Run | Yrd Mat Mat Mat Robot Analysis Total 6 | 1 3 1 1 Derelict Logs Recovered . | . . . . Drone Launches . | . . . . Drone Recoveries . | . . . . Exploration | -11 -10 -9 -8 ------------- Run | Yrd Mat Mat Mat Turns Passed 926 | 46 248 409 223 Spaces Moved 838 | 48 328 347 115 Core 120 | 11 24 76 9 Treads 196 | . . 112 84 Legs . | . . . . Wheels 389 | 37 200 130 22 Hover 133 | . 104 29 . Flight . | . . . . Fastest Speed 50 | 50 50 50 50 Average Speed 93 | 88 74 99 136 Slowest Speed 160 | 100 100 160 160 Overloaded Moves . | . . . . Propulsion Burnouts . | . . . . Robots Hopped 1 | . . 1 . Cave-ins Triggered . | . . . . Exploration Rate (%) 20 | 3 46 22 12 Regions Visited 3 Branch Regions . Pre-discovered Areas . | . . . . Known Exits Taken . | . . . . Unknown Exits Taken 3 | 1 1 1 . Scrap Searched . | . . . . Spaces Dug . | . . . . Terrain Destroyed . | . . . . Melee . | . . . . Projectile . | . . . . AOE . | . . . . Terrain Rammed . | . . . . Walls Destroyed . | . . . . Machines Disabled . | . . . . Actions | -11 -10 -9 -8 --------- Run | Yrd Mat Mat Mat Total 934 | 51 331 384 168 Wait 2 | . . 1 1 Move 833 | 47 327 344 115 Hop 1 | . . 1 . Pick Up 8 | 4 . 4 . Fast Attach . | . . . . Attach . | . . . . Detach . | . . . . Swap . | . . . . Drop 1 | . . 1 . Fire 14 | . . 12 2 Melee 2 | . . 2 . Ram 51 | . 2 14 35 Kick . | . . . . Crush 18 | . . 3 15 Escape Stasis . | . . . . Rewire 4 | . 2 2 . Trap . | . . . . Miscellaneous . | . . . . Route ------- -11/Scrapyard -10/Materials -9/Materials (discovered 2 exits: *Mat / [*Min]) -8/Materials History --------- Turn | Location | Event 4 | -11/Scrapyard | Discovered new exit (range 16) 47 | -11/Scrapyard | Entered Materials 227 | -10/Materials | Discovered new exit (range 8) 295 | -10/Materials | Entered another Materials area 316 | -9/Materials | Lost 4 parts (1p2n1w) 319 | -9/Materials | Discovered new exit (range 13) 534 | -9/Materials | Discovered new exit (range 8) 704 | -9/Materials | Entered another Materials area 791 | -8/Materials | Core integrity fell below 50% 898 | -8/Materials | Core integrity fell below 20% 927 | -8/Materials | Destroyed by G-47 Trooper with Particle Gun Last Messages --------------- R-06 Scavenger collects Lgt. Ion Engine. Slammed into Y-45 Defender. Imp. Ion Engine destroyed. Slammed into Y-45 Defender. Heat Sink destroyed. Lost control of Y-45 Defender. Slammed into Y-45 Defender. R-06 Scavenger collects Com. Wheel. Took control of U-05 Engineer. Extracted analysis data for U-05 Engineer. 5%V7WW99,H CCM|8V,JN%6&: Welding Torch destroyed. Slammed into G-47 Trooper. Electrolysis Chamber disabled. Slammed into G-47 Trooper. Wheel broken. Destabilizing: Short circuit. Slammed into G-47 Trooper. Critical hit (Burn: +37). Slammed into G-47 Trooper. Map ----- +----------------------------------------------------+ | ?????????????????????????????????????????????????? | | ?????????????????????????????????????????????????? | | ?????????????????????????????????????????????????? | | ?????????????????????????????????????????????????? | | ?????????????????????????????????????????????????? | | ?????????????????????????????????????????????????? | | ??????????????????????????#??????????????????????? | | ??????????????????????????#???#??????????????????? | | ??????????????????????????#???#####??????????????? | | ??????????????????????????#???#??????????????????? | | ??????????????????????????#???+??????????????????? | | ??????????????????????????# # ?????????????????? | | ???????????????#?????#????# # ?????????????????? | | ?????????????????????????## # ?????????????????? | | ????????????????????#?????# # ?????????????????? | | ???????????????#??????????# ##?????????????????? | | ???????????#??????????##?## ###??#?????????????? | | ??????????????#?????#?#??## ##?#???????????????? | | ????????????????????#?#?### ##?????#???????????? | | ???????????#????????????### ##?????????????????? | | ?+###+##??????#??########## #########??????????? | | ???????#???#???############ # ?????#???????????? | | ?###???#??????#??## Y # Y # ?????#???????????? | | ???#???#????????### """ # # ???##??????????? | | ####???#???#?#?#?##* """g/ + ?? ?#???????????? | | ???#???#???#?????## "" u# # ?#???????????? | | ???# ?#??######### g # # ????#???????#???? | | ???# #################### #########??????#???? | | ???# ! #####% ###############???? | | ???+ % %% ??????? | | ???# %%%% ################??? | | ##+# %% #########??????#??? | | ?? #####%% ##?#??????????????? | | ?? !!! ############????????????????? | | ?? !!! ############????????????????? | | ##+######### !! #??"? ##?##????????????????? | | ??????#????# #?"?" ###??????????????????? | | ??????#????+ #???? ?#???#??????????+?????? | | ??????#????#+##### +?? ? #?#??????????????????? | | ??????#????#????## # ?????#????????????????????? | | ??????#????#????## # ????#????????????????????? | | ??????#????#????## ####?###??#?????????????????? | | ??????#????#????## #??###??????????????????????? | | ??????#????#????## #???????????????????????????? | | ??????#????#????## ############????????????????? | | ??????######????## ???????????????? | | ?????????######### ???????????????? | | ?????????# %%= # ???????????????? | | ?????????#"""% # #############???????????????? | | ?????????#"""%% # #???????????????????????????? | +----------------------------------------------------+ Best States ------------- Heat Dissipation 39 Energy Generation 17 Energy Capacity 215 Matter Stores 100 Matter Capacity 125 Sight Range 18 Robot Scan Range 14 Terrain Scan Range 14 Terrain Scan Density 85 Armor Coverage 150 Resistance: EX 50 Resistance: I 25 Evasion (%) 53 Recoil Reduction 2 Offensive Hacking 10 Item Schematics ----------------- None Robot Schematics ------------------ None Fabricated ------------ Nothing Alien Tech Used ----------------- None Achievements -------------- Armchair Analyst Challenges ------------ None Polymind | -11 -10 -9 -8 ---------- Run | Yrd Mat Mat Mat Hosts 11 | 1 3 5 2 Combat Hostiles 2 | . . 1 1 Allies . | . . . . Unique Host Classes 6 | 1 3 1 1 Average Host Suspicion 60 | 6 43 83 45 Unsuspicious Activity 143 | 2 58 72 11 Returns to Shadow . | . . . . Fuzzy Dispatches . | . . . . Protomatter Created 13 | . . 13 . Used 98 | 5 22 43 28 Decayed 13 | . . 13 . Highest Spend 23 | 5 12 23 23 Top 5 Hosts by Kills: Y-45 Defender (-9/Materials: 3) Game ------ Seed DroneAuthchipSword Manual? 0 Play Time 00:13:19 Cumulative 6.8 hours Start 2024.07.16 @ 23:24:25 End 2024.07.16 @ 23:37:17 Sessions 1 Manual Loads 0 Difficulty Rogue Special Mode Winter2022/Polymind Game No. 18 Rogue 18 Adventurer 0 Explorer 0 Win Type - Total 0 Types 0/0/0/0/0/0/0/0/0 Lore% 16 Gallery% 15 Achievement% 16 Wizard Run 0 Options --------- Layout 0 ASCII 0 Keyboard 0 Movement Mouse Keybinds 0 Fullscreen 1 Font 18/SmallcapsGlow Map View 76x50 Zoom Use 0% Tactical HUD 0 Map Filters NONE Filters NONE Steam 1 RUN: d47a8612-6481-42e7-986e-14779f76e87c